[Event "*** SCC Grand Prix: Titled Tuesday Blitz"]
[Site "Chess.com"]
[Date "2020.06.02"]
[Round "8"]
[White "IngOscarArdila"]
[Black "davigator"]
[Result "0-1"]
[WhiteElo "2099"]
[BlackElo "2318"]
[TimeControl "180+1"]
[EndTime "11:37:15 PDT"]
[Termination "davigator won on time"]

1. d4 {[%clk 0:03:00.9]} 1... Nf6 {[%clk 0:02:59.4]} 2. c4 {[%clk 0:02:59.3]}
2... e6 {[%clk 0:02:59]} 3. Nc3 {[%clk 0:02:58.8]} 3... Bb4 {[%clk 0:02:59.3]}
4. Bd2 {[%clk 0:02:59.3]} 4... d5 {[%clk 0:02:58.2]} 5. cxd5 {[%clk 0:02:57.9]}
5... exd5 {[%clk 0:02:57.9]} 6. Nf3 {[%clk 0:02:58.3]} 6... O-O {[%clk
0:02:57.6]} 7. Bg5 {[%clk 0:02:58.8]} 7... h6 {[%clk 0:02:54]} 8. Bxf6 {[%clk
0:02:58]} 8... Qxf6 {[%clk 0:02:53.9]} 9. e3 {[%clk 0:02:58.5]} 9... c6 {[%clk
0:02:50]} 10. Be2 {[%clk 0:02:58.3]} 10... Bf5 {[%clk 0:02:48.8]} 11. O-O {[%clk
0:02:58.2]} 11... a5 {[%clk 0:02:46.1]} 12. a3 {[%clk 0:02:58.3]} 12... Bd6
{[%clk 0:02:45.3]} 13. Bd3 {[%clk 0:02:52.9]} 13... Bg4 {[%clk 0:02:43.4]} 14.
h3 {[%clk 0:02:51.8]} 14... Bh5 {[%clk 0:02:41.7]} 15. Be2 {[%clk 0:02:51.7]}
15... Nd7 {[%clk 0:02:40]} 16. Nd2 {[%clk 0:02:44.7]} 16... Bg6 {[%clk
0:02:38.7]} 17. Bg4 {[%clk 0:02:40]} 17... Rad8 {[%clk 0:02:32.5]} 18. Qf3
{[%clk 0:02:39.5]} 18... Qe7 {[%clk 0:02:30.7]} 19. Bf5 {[%clk 0:02:33.8]} 19...
Bxf5 {[%clk 0:02:30]} 20. Qxf5 {[%clk 0:02:33.5]} 20... Nf6 {[%clk 0:02:29.6]}
21. Nf3 {[%clk 0:02:32.1]} 21... Rfe8 {[%clk 0:02:27.2]} 22. Rab1 {[%clk
0:02:29.5]} 22... g6 {[%clk 0:02:25.9]} 23. Qd3 {[%clk 0:02:26]} 23... Kg7
{[%clk 0:02:25.4]} 24. Na4 {[%clk 0:02:24.2]} 24... Ne4 {[%clk 0:02:22.9]} 25.
Nd2 {[%clk 0:02:23.7]} 25... f5 {[%clk 0:02:19.9]} 26. Nxe4 {[%clk 0:02:23.8]}
26... fxe4 {[%clk 0:02:19.2]} 27. Qc2 {[%clk 0:02:23.5]} 27... Rf8 {[%clk
0:02:18.5]} 28. Nc5 {[%clk 0:02:17.7]} 28... Rf6 {[%clk 0:02:05]} 29. b4 {[%clk
0:02:16.2]} 29... axb4 {[%clk 0:02:04]} 30. Rxb4 {[%clk 0:02:13.4]} 30... b5
{[%clk 0:02:00.8]} 31. a4 {[%clk 0:02:12]} 31... bxa4 {[%clk 0:01:47.1]} 32. Rb7
{[%clk 0:02:09.9]} 32... Bc7 {[%clk 0:01:46.8]} 33. Qxa4 {[%clk 0:02:05.8]}
33... Qd6 {[%clk 0:01:45.4]} 34. g3 {[%clk 0:02:00.1]} 34... Rf7 {[%clk
0:01:45]} 35. Qa7 {[%clk 0:01:57.6]} 35... Kg8 {[%clk 0:01:41.6]} 36. Na6 {[%clk
0:01:27]} 36... Rdd7 {[%clk 0:01:33.6]} 37. Rfb1 {[%clk 0:01:05.6]} 37... Kg7
{[%clk 0:01:31.2]} 38. Nc5 {[%clk 0:00:59.8]} 38... Rd8 {[%clk 0:01:28.4]} 39.
R1b2 {[%clk 0:00:57.4]} 39... Re8 {[%clk 0:01:21.4]} 40. Na6 {[%clk 0:00:53.9]}
40... Ree7 {[%clk 0:01:20.6]} 41. Nxc7 {[%clk 0:00:50]} 41... Rxc7 {[%clk
0:01:20]} 42. Rxc7 {[%clk 0:00:50.1]} 42... Qxc7 {[%clk 0:01:19]} 43. Qc5 {[%clk
0:00:47.2]} 43... h5 {[%clk 0:01:17]} 44. h4 {[%clk 0:00:45.8]} 44... Qd7 {[%clk
0:01:13.1]} 45. Rc2 {[%clk 0:00:42.3]} 45... Rf6 {[%clk 0:01:11.8]} 46. Qb6
{[%clk 0:00:41.6]} 46... Qg4 {[%clk 0:01:08.9]} 47. Qc7+ {[%clk 0:00:28.4]}
47... Kh6 {[%clk 0:01:06.3]} 48. Kh2 {[%clk 0:00:17.9]} 48... Qd1 {[%clk
0:01:01.8]} 49. Rb2 {[%clk 0:00:17.2]} 49... Qf1 {[%clk 0:00:58.8]} 50. Qe5
{[%clk 0:00:12.2]} 50... Rxf2+ {[%clk 0:00:57.7]} 51. Rxf2 {[%clk 0:00:12.1]}
51... Qxf2+ {[%clk 0:00:57.6]} 52. Kh3 {[%clk 0:00:13]} 52... Qf5+ {[%clk
0:00:56.9]} 53. Qxf5 {[%clk 0:00:10.3]} 53... gxf5 {[%clk 0:00:56.7]} 54. Kg2
{[%clk 0:00:11.2]} 54... Kg6 {[%clk 0:00:56.5]} 55. Kf2 {[%clk 0:00:11.6]} 55...
Kf6 {[%clk 0:00:56.6]} 56. Ke2 {[%clk 0:00:12.1]} 56... Ke6 {[%clk 0:00:56.8]}
57. Kd2 {[%clk 0:00:12.7]} 57... Kd6 {[%clk 0:00:56.8]} 58. Kc3 {[%clk
0:00:13.2]} 58... c5 {[%clk 0:00:55.7]} 59. dxc5+ {[%clk 0:00:11.8]} 59... Kxc5
{[%clk 0:00:55.2]} 60. Kb3 {[%clk 0:00:12.5]} 60... d4 {[%clk 0:00:54.9]} 61.
exd4+ {[%clk 0:00:12.6]} 61... Kxd4 {[%clk 0:00:55]} 62. Kc2 {[%clk 0:00:13.2]}
62... Ke3 {[%clk 0:00:55]} 63. Kd1 {[%clk 0:00:13.3]} 63... Kf3 {[%clk
0:00:54.2]} 64. Kd2 {[%clk 0:00:13.4]} 64... Kxg3 {[%clk 0:00:54.3]} 65. Ke3
{[%clk 0:00:14.3]} 65... Kxh4 {[%clk 0:00:54.3]} 0-1

[Event "*** SCC Grand Prix: Titled Tuesday Blitz"]
[Site "Chess.com"]
[Date "2020.06.02"]
[Round "8"]
[White "Violord"]
[Black "InitiatingASC"]
[Result "1-0"]
[WhiteElo "2596"]
[BlackElo "2402"]
[TimeControl "180+1"]
[EndTime "11:37:16 PDT"]
[Termination "Violord won on time"]

1. Nf3 {[%clk 0:02:59.3]} 1... Nf6 {[%clk 0:02:59.5]} 2. g3 {[%clk 0:02:58.7]}
2... b6 {[%clk 0:02:58.1]} 3. Bg2 {[%clk 0:02:58.3]} 3... Bb7 {[%clk 0:02:58.6]}
4. O-O {[%clk 0:02:58.1]} 4... e6 {[%clk 0:02:58.9]} 5. c4 {[%clk 0:02:57.8]}
5... c5 {[%clk 0:02:58.1]} 6. b3 {[%clk 0:02:57.6]} 6... Be7 {[%clk 0:02:57.9]}
7. Bb2 {[%clk 0:02:57.6]} 7... O-O {[%clk 0:02:58.5]} 8. e3 {[%clk 0:02:57.4]}
8... d6 {[%clk 0:02:58.5]} 9. Nc3 {[%clk 0:02:56.7]} 9... Nbd7 {[%clk
0:02:58.6]} 10. Qe2 {[%clk 0:02:56.7]} 10... a6 {[%clk 0:02:55]} 11. Nh4 {[%clk
0:02:51]} 11... Bxg2 {[%clk 0:02:52.7]} 12. Nxg2 {[%clk 0:02:50.5]} 12... d5
{[%clk 0:02:48]} 13. f4 {[%clk 0:02:49.7]} 13... Qc8 {[%clk 0:02:40]} 14. g4
{[%clk 0:02:43.5]} 14... Qb7 {[%clk 0:02:33.2]} 15. g5 {[%clk 0:02:30]} 15...
Ne4 {[%clk 0:02:16.7]} 16. cxd5 {[%clk 0:02:14.7]} 16... Nxc3 {[%clk 0:02:11.5]}
17. Bxc3 {[%clk 0:02:10.7]} 17... Qxd5 {[%clk 0:02:08.2]} 18. h4 {[%clk
0:02:00.6]} 18... Rfd8 {[%clk 0:02:06.7]} 19. e4 {[%clk 0:01:59.6]} 19... Qb7
{[%clk 0:02:01.9]} 20. f5 {[%clk 0:01:56.9]} 20... exf5 {[%clk 0:02:00.7]} 21.
Rxf5 {[%clk 0:01:53.6]} 21... Rf8 {[%clk 0:01:27.4]} 22. Raf1 {[%clk 0:01:49.4]}
22... Rae8 {[%clk 0:01:26.9]} 23. d3 {[%clk 0:01:42.6]} 23... Bd6 {[%clk
0:01:23.7]} 24. Ne3 {[%clk 0:01:41.9]} 24... Bb8 {[%clk 0:01:22.9]} 25. Ng4
{[%clk 0:01:38.4]} 25... Qc7 {[%clk 0:01:19.1]} 26. R1f3 {[%clk 0:01:34.9]}
26... Re6 {[%clk 0:01:12.6]} 27. h5 {[%clk 0:01:32.3]} 27... b5 {[%clk
0:01:09.6]} 28. Qg2 {[%clk 0:01:28.9]} 28... c4 {[%clk 0:01:05.8]} 29. Nh6+
{[%clk 0:01:25.7]} 29... Rxh6 {[%clk 0:00:47]} 30. gxh6 {[%clk 0:01:25.1]} 30...
g6 {[%clk 0:00:47.7]} 31. hxg6 {[%clk 0:01:22.9]} 31... fxg6 {[%clk 0:00:45.3]}
32. Rxf8+ {[%clk 0:01:14]} 32... Nxf8 {[%clk 0:00:45.4]} 33. bxc4 {[%clk
0:01:09.1]} 33... bxc4 {[%clk 0:00:44.5]} 34. Qg5 {[%clk 0:00:33.3]} 34... Qh2+
{[%clk 0:00:21.5]} 35. Kf1 {[%clk 0:00:32.3]} 35... Qh1+ {[%clk 0:00:19.7]} 36.
Ke2 {[%clk 0:00:28.5]} 36... cxd3+ {[%clk 0:00:19.7]} 37. Rxd3 {[%clk
0:00:21.9]} 37... Qxe4+ {[%clk 0:00:18.9]} 38. Re3 {[%clk 0:00:21.3]} 38... Qc2+
{[%clk 0:00:16.8]} 39. Kf3 {[%clk 0:00:19]} 39... Qxa2 {[%clk 0:00:14.5]} 40.
Qf6 {[%clk 0:00:17.8]} 40... Qd5+ {[%clk 0:00:11.3]} 41. Ke2 {[%clk 0:00:14.5]}
41... Qc4+ {[%clk 0:00:09]} 42. Kd1 {[%clk 0:00:10.5]} 42... Qd5+ {[%clk
0:00:07.3]} 43. Kc1 {[%clk 0:00:09.5]} 43... Qh1+ {[%clk 0:00:04.8]} 44. Kb2
{[%clk 0:00:08.9]} 44... Qb7+ {[%clk 0:00:04]} 45. Kc1 {[%clk 0:00:05.1]} 45...
Qh1+ {[%clk 0:00:03.6]} 46. Re1 {[%clk 0:00:04]} 46... Qxh6+ {[%clk 0:00:02.2]}
47. Kb1 {[%clk 0:00:03.5]} 1-0

[Event "*** SCC Grand Prix: Titled Tuesday Blitz"]
[Site "Chess.com"]
[Date "2020.06.02"]
[Round "8"]
[White "DLR7"]
[Black "Guenplen"]
[Result "1/2-1/2"]
[WhiteElo "2672"]
[BlackElo "2899"]
[TimeControl "180+1"]
[EndTime "11:37:17 PDT"]
[Termination "Game drawn - insufficient material"]

1. e4 {[%clk 0:02:24.1]} 1... c5 {[%clk 0:03:00]} 2. Nf3 {[%clk 0:02:22.6]} 2...
e6 {[%clk 0:03:00.1]} 3. b4 {[%clk 0:02:22.9]} 3... cxb4 {[%clk 0:02:58.1]} 4.
d4 {[%clk 0:02:22.8]} 4... d5 {[%clk 0:02:57.5]} 5. e5 {[%clk 0:02:23.1]} 5...
Nc6 {[%clk 0:02:53.7]} 6. a3 {[%clk 0:02:23.6]} 6... Nh6 {[%clk 0:02:41.6]} 7.
axb4 {[%clk 0:02:03]} 7... Bxb4+ {[%clk 0:02:42.5]} 8. c3 {[%clk 0:02:02.4]}
8... Be7 {[%clk 0:02:42.3]} 9. Bxh6 {[%clk 0:01:59]} 9... gxh6 {[%clk
0:02:43.2]} 10. Qc1 {[%clk 0:01:57.1]} 10... Bg5 {[%clk 0:02:35.5]} 11. Nbd2
{[%clk 0:01:56.7]} 11... Bd7 {[%clk 0:02:31.7]} 12. h4 {[%clk 0:01:55.1]} 12...
Be7 {[%clk 0:02:31.6]} 13. Bd3 {[%clk 0:01:49.7]} 13... Rc8 {[%clk 0:02:25.1]}
14. O-O {[%clk 0:01:35.7]} 14... Bxh4 {[%clk 0:02:17.7]} 15. Nb3 {[%clk
0:01:32.5]} 15... Bg5 {[%clk 0:02:16.9]} 16. Nxg5 {[%clk 0:01:29.5]} 16... Qxg5
{[%clk 0:02:15.4]} 17. f4 {[%clk 0:01:27.4]} 17... Qg4 {[%clk 0:02:00.2]} 18.
Nc5 {[%clk 0:01:23]} 18... Rc7 {[%clk 0:01:50.4]} 19. f5 {[%clk 0:01:22.8]}
19... Rg8 {[%clk 0:01:34.4]} 20. Rf2 {[%clk 0:01:21.6]} 20... Nxe5 {[%clk
0:01:17]} 21. dxe5 {[%clk 0:01:08]} 21... Rxc5 {[%clk 0:01:12.7]} 22. Qa3 {[%clk
0:01:08.5]} 22... b6 {[%clk 0:00:23.3]} 23. Qxa7 {[%clk 0:01:06.6]} 23... exf5
{[%clk 0:00:17.8]} 24. Qxb6 {[%clk 0:01:01.7]} 24... Rc6 {[%clk 0:00:08.8]} 25.
Qb4 {[%clk 0:00:48.5]} 25... Qxb4 {[%clk 0:00:08.1]} 26. cxb4 {[%clk 0:00:49.4]}
26... Ke7 {[%clk 0:00:07.9]} 27. Bxf5 {[%clk 0:00:49.3]} 27... Bxf5 {[%clk
0:00:06.1]} 28. Rxf5 {[%clk 0:00:50.2]} 28... Rc2 {[%clk 0:00:06.2]} 29. Rf2
{[%clk 0:00:47.8]} 29... Rxf2 {[%clk 0:00:05.8]} 30. Kxf2 {[%clk 0:00:48.7]}
30... Rb8 {[%clk 0:00:06.2]} 31. Rb1 {[%clk 0:00:41.3]} 31... Ke6 {[%clk
0:00:06.2]} 32. Ke3 {[%clk 0:00:41.7]} 32... Kxe5 {[%clk 0:00:06.6]} 33. Kd3
{[%clk 0:00:42.4]} 33... f5 {[%clk 0:00:02.6]} 34. b5 {[%clk 0:00:42.3]} 34...
Rb6 {[%clk 0:00:02.5]} 35. Rb2 {[%clk 0:00:36]} 35... Kd6 {[%clk 0:00:02.6]} 36.
Kd4 {[%clk 0:00:35.8]} 36... f4 {[%clk 0:00:03]} 37. Rb3 {[%clk 0:00:32.1]}
37... h5 {[%clk 0:00:03.5]} 38. Rb2 {[%clk 0:00:30.7]} 38... h4 {[%clk
0:00:04.1]} 39. Rb3 {[%clk 0:00:30.8]} 39... h6 {[%clk 0:00:04.8]} 40. Rb1
{[%clk 0:00:29.6]} 40... h5 {[%clk 0:00:05.4]} 41. Rb3 {[%clk 0:00:29.4]} 41...
Rb7 {[%clk 0:00:05.1]} 42. Rb1 {[%clk 0:00:26.3]} 42... Rg7 {[%clk 0:00:04.3]}
43. b6 {[%clk 0:00:20.2]} 43... Rb7 {[%clk 0:00:04.2]} 44. Rb5 {[%clk
0:00:20.6]} 44... Kc6 {[%clk 0:00:04.5]} 45. Rxd5 {[%clk 0:00:20.5]} 45... f3
{[%clk 0:00:03.8]} 46. gxf3 {[%clk 0:00:19.8]} 46... Rd7 {[%clk 0:00:03.7]} 47.
Rxd7 {[%clk 0:00:17.6]} 47... Kxd7 {[%clk 0:00:04.6]} 48. Ke3 {[%clk 0:00:18.1]}
48... Kc6 {[%clk 0:00:05]} 49. Kf2 {[%clk 0:00:18.7]} 49... Kxb6 {[%clk
0:00:04.9]} 50. Kg2 {[%clk 0:00:19.6]} 50... Kc6 {[%clk 0:00:04.6]} 51. Kh3
{[%clk 0:00:20.5]} 51... Kd6 {[%clk 0:00:04.5]} 52. Kxh4 {[%clk 0:00:21.4]}
52... Ke5 {[%clk 0:00:05.4]} 53. Kg5 {[%clk 0:00:16.5]} 53... h4 {[%clk
0:00:05.8]} 54. f4+ {[%clk 0:00:16.5]} 54... Ke4 {[%clk 0:00:05.4]} 55. Kxh4
{[%clk 0:00:17]} 55... Kxf4 {[%clk 0:00:05.6]} 1/2-1/2

[Event "*** SCC Grand Prix: Titled Tuesday Blitz"]
[Site "Chess.com"]
[Date "2020.06.02"]
[Round "8"]
[White "hectorfiori"]
[Black "Borsuk_Konstantin"]
[Result "0-1"]
[WhiteElo "2375"]
[BlackElo "2552"]
[TimeControl "180+1"]
[EndTime "11:37:17 PDT"]
[Termination "Borsuk_Konstantin won by checkmate"]

1. e4 {[%clk 0:03:00.9]} 1... e6 {[%clk 0:02:59.6]} 2. d4 {[%clk 0:02:59.7]}
2... d5 {[%clk 0:03:00.5]} 3. Nc3 {[%clk 0:02:59.1]} 3... Bb4 {[%clk 0:02:59.7]}
4. e5 {[%clk 0:02:58.8]} 4... b6 {[%clk 0:02:59.6]} 5. Qg4 {[%clk 0:02:51.7]}
5... Bf8 {[%clk 0:02:59.7]} 6. Bg5 {[%clk 0:02:43.2]} 6... Qd7 {[%clk 0:02:56]}
7. Nf3 {[%clk 0:02:35.1]} 7... Ba6 {[%clk 0:02:54.6]} 8. Bxa6 {[%clk 0:02:28.1]}
8... Nxa6 {[%clk 0:02:53.6]} 9. O-O {[%clk 0:02:28.6]} 9... h6 {[%clk
0:02:39.4]} 10. Be3 {[%clk 0:02:21.2]} 10... Ne7 {[%clk 0:02:38.4]} 11. Nd2
{[%clk 0:02:10.5]} 11... Nb4 {[%clk 0:02:25]} 12. Rfc1 {[%clk 0:02:03.4]} 12...
Nf5 {[%clk 0:02:23.7]} 13. a3 {[%clk 0:02:02.3]} 13... Nc6 {[%clk 0:02:21.3]}
14. Ne2 {[%clk 0:01:56.4]} 14... Be7 {[%clk 0:01:52]} 15. Rd1 {[%clk 0:01:37.6]}
15... h5 {[%clk 0:01:39.7]} 16. Qf3 {[%clk 0:01:30]} 16... g5 {[%clk 0:01:38.6]}
17. g3 {[%clk 0:01:27.9]} 17... g4 {[%clk 0:01:27.1]} 18. Qg2 {[%clk 0:01:27]}
18... h4 {[%clk 0:01:27.1]} 19. Nf4 {[%clk 0:00:50.2]} 19... hxg3 {[%clk
0:01:21]} 20. hxg3 {[%clk 0:00:50.3]} 20... Ncxd4 {[%clk 0:01:15.3]} 21. Bxd4
{[%clk 0:00:46.7]} 21... Nxd4 {[%clk 0:01:15]} 22. c3 {[%clk 0:00:47]} 22... Nf5
{[%clk 0:01:10]} 23. c4 {[%clk 0:00:46]} 23... c6 {[%clk 0:01:07.4]} 24. cxd5
{[%clk 0:00:44.1]} 24... cxd5 {[%clk 0:01:07.4]} 25. Rac1 {[%clk 0:00:44.6]}
25... Rc8 {[%clk 0:01:05]} 26. Nb3 {[%clk 0:00:39.4]} 26... Bg5 {[%clk
0:01:02.7]} 27. Rxc8+ {[%clk 0:00:36.5]} 27... Qxc8 {[%clk 0:01:01.9]} 28. Rc1
{[%clk 0:00:19.7]} 28... Qd7 {[%clk 0:00:56.4]} 29. Rc2 {[%clk 0:00:18.4]} 29...
Kf8 {[%clk 0:00:42.5]} 30. Nc1 {[%clk 0:00:09.6]} 30... Kg7 {[%clk 0:00:38.9]}
31. Nce2 {[%clk 0:00:09.8]} 31... b5 {[%clk 0:00:28.8]} 32. Rc3 {[%clk
0:00:09.4]} 32... a5 {[%clk 0:00:28.7]} 33. Rb3 {[%clk 0:00:08.9]} 33... b4
{[%clk 0:00:27.7]} 34. axb4 {[%clk 0:00:08.7]} 34... Qa4 {[%clk 0:00:27.3]} 35.
Rc3 {[%clk 0:00:08.2]} 35... axb4 {[%clk 0:00:27.1]} 36. Rc1 {[%clk 0:00:07.2]}
36... Qa2 {[%clk 0:00:19.1]} 37. Qf1 {[%clk 0:00:07.3]} 37... Qxb2 {[%clk
0:00:18.5]} 38. Qd1 {[%clk 0:00:07.9]} 38... Qxe5 {[%clk 0:00:17.5]} 39. Rb1
{[%clk 0:00:06.9]} 39... Qe4 {[%clk 0:00:15.8]} 40. Ng2 {[%clk 0:00:05.9]} 40...
Rb8 {[%clk 0:00:12.5]} 41. Nef4 {[%clk 0:00:05.9]} 41... Qf3 {[%clk 0:00:11.7]}
42. Qxf3 {[%clk 0:00:05.6]} 42... gxf3 {[%clk 0:00:11.6]} 43. Ne1 {[%clk
0:00:04.3]} 43... Bxf4 {[%clk 0:00:12]} 44. gxf4 {[%clk 0:00:04.8]} 44... Nd4
{[%clk 0:00:12.4]} 45. Nd3 {[%clk 0:00:05.1]} 45... b3 {[%clk 0:00:12.4]} 46.
Kh2 {[%clk 0:00:05.4]} 46... Kf6 {[%clk 0:00:11.4]} 47. Kg3 {[%clk 0:00:05.9]}
47... Kf5 {[%clk 0:00:11.6]} 48. Rb2 {[%clk 0:00:05.2]} 48... Rg8+ {[%clk
0:00:10.9]} 49. Kh3 {[%clk 0:00:04.8]} 49... f6 {[%clk 0:00:11.2]} 50. Nc1
{[%clk 0:00:04]} 50... Kxf4 {[%clk 0:00:11.2]} 51. Nxb3 {[%clk 0:00:04.1]} 51...
Rh8# {[%clk 0:00:09]} 0-1

[Event "*** SCC Grand Prix: Titled Tuesday Blitz"]
[Site "Chess.com"]
[Date "2020.06.02"]
[Round "8"]
[White "MartinMatthiesen"]
[Black "AlexOstrovskiy"]
[Result "0-1"]
[WhiteElo "2357"]
[BlackElo "2530"]
[TimeControl "180+1"]
[EndTime "11:37:17 PDT"]
[Termination "AlexOstrovskiy won on time"]

1. d4 {[%clk 0:03:00.9]} 1... Nf6 {[%clk 0:02:57.9]} 2. c4 {[%clk 0:03:00.3]}
2... Nc6 {[%clk 0:02:58.3]} 3. Nf3 {[%clk 0:02:58.6]} 3... e6 {[%clk 0:02:58.5]}
4. a3 {[%clk 0:02:57.4]} 4... d6 {[%clk 0:02:56.4]} 5. e3 {[%clk 0:02:47.6]}
5... g6 {[%clk 0:02:54.2]} 6. Be2 {[%clk 0:02:47.2]} 6... Bg7 {[%clk 0:02:53.9]}
7. O-O {[%clk 0:02:46.9]} 7... O-O {[%clk 0:02:53.8]} 8. b4 {[%clk 0:02:45.9]}
8... Qe7 {[%clk 0:02:49.9]} 9. b5 {[%clk 0:02:42.3]} 9... Nb8 {[%clk 0:02:46.3]}
10. a4 {[%clk 0:02:39.4]} 10... Nbd7 {[%clk 0:02:40.8]} 11. Ba3 {[%clk
0:02:35.8]} 11... b6 {[%clk 0:02:40.6]} 12. Ne1 {[%clk 0:02:23.5]} 12... Bb7
{[%clk 0:02:34.3]} 13. Bf3 {[%clk 0:02:22.4]} 13... Ne4 {[%clk 0:02:32]} 14. Qc2
{[%clk 0:02:19.1]} 14... f5 {[%clk 0:02:29]} 15. Nc3 {[%clk 0:02:14.3]} 15...
Ndf6 {[%clk 0:02:27.6]} 16. Nd3 {[%clk 0:02:07.3]} 16... g5 {[%clk 0:02:21.8]}
17. a5 {[%clk 0:01:48.4]} 17... Rab8 {[%clk 0:02:05.4]} 18. axb6 {[%clk
0:01:41.7]} 18... axb6 {[%clk 0:02:06.3]} 19. Nb4 {[%clk 0:01:34.8]} 19... g4
{[%clk 0:02:04.2]} 20. Be2 {[%clk 0:01:33.7]} 20... Nxc3 {[%clk 0:02:00.9]} 21.
Qxc3 {[%clk 0:01:33.3]} 21... Ne4 {[%clk 0:01:55.1]} 22. Qc2 {[%clk 0:01:32.5]}
22... Qh4 {[%clk 0:01:47.5]} 23. f3 {[%clk 0:00:35.3]} 23... gxf3 {[%clk
0:01:42.8]} 24. Bxf3 {[%clk 0:00:31.4]} 24... Rf6 {[%clk 0:01:28.6]} 25. Nc6
{[%clk 0:00:31.2]} 25... Bxc6 {[%clk 0:01:24.3]} 26. bxc6 {[%clk 0:00:30.8]}
26... Rh6 {[%clk 0:01:22.6]} 27. g3 {[%clk 0:00:30.5]} 27... Qg5 {[%clk
0:00:55]} 28. Bc1 {[%clk 0:00:20.4]} 28... d5 {[%clk 0:00:31.9]} 29. Ra7 {[%clk
0:00:19.7]} 29... Rc8 {[%clk 0:00:31.8]} 30. Bxe4 {[%clk 0:00:19]} 30... fxe4
{[%clk 0:00:29.8]} 31. Qf2 {[%clk 0:00:17.9]} 31... Rf6 {[%clk 0:00:29.3]} 32.
Qg2 {[%clk 0:00:18.3]} 32... Bh6 {[%clk 0:00:21.3]} 33. Rxf6 {[%clk 0:00:15.4]}
33... Qxf6 {[%clk 0:00:22.2]} 34. h3 {[%clk 0:00:12.2]} 34... Qf7 {[%clk
0:00:18.5]} 35. Kh2 {[%clk 0:00:11.5]} 35... Qe8 {[%clk 0:00:17.3]} 36. cxd5
{[%clk 0:00:10]} 36... exd5 {[%clk 0:00:18.2]} 37. Qc2 {[%clk 0:00:09.1]} 37...
Qe6 {[%clk 0:00:16.7]} 38. Ba3 {[%clk 0:00:08.9]} 38... Bxe3 {[%clk 0:00:14.3]}
39. Qe2 {[%clk 0:00:07.8]} 39... Bxd4 {[%clk 0:00:13.3]} 40. Qh5 {[%clk
0:00:07.1]} 40... Bg7 {[%clk 0:00:10.6]} 41. h4 {[%clk 0:00:06.9]} 41... e3
{[%clk 0:00:10.7]} 42. Bc1 {[%clk 0:00:05.3]} 42... e2 {[%clk 0:00:09.7]} 43.
Bd2 {[%clk 0:00:05.6]} 43... e1=Q {[%clk 0:00:07.8]} 44. Bxe1 {[%clk 0:00:05.7]}
44... Qxe1 {[%clk 0:00:08.7]} 45. Qg4 {[%clk 0:00:06.1]} 45... Rf8 {[%clk
0:00:07.2]} 0-1

[Event "*** SCC Grand Prix: Titled Tuesday Blitz"]
[Site "Chess.com"]
[Date "2020.06.02"]
[Round "8"]
[White "Misticpikachu"]
[Black "karinachess1"]
[Result "1/2-1/2"]
[WhiteElo "2275"]
[BlackElo "2498"]
[TimeControl "180+1"]
[EndTime "11:37:17 PDT"]
[Termination "Game drawn by repetition"]

1. c4 {[%clk 0:03:00.9]} 1... d6 {[%clk 0:02:58.7]} 2. Nc3 {[%clk 0:03:00.1]}
2... e5 {[%clk 0:02:57.7]} 3. g3 {[%clk 0:02:58.7]} 3... f5 {[%clk 0:02:50.2]}
4. Bg2 {[%clk 0:02:58.9]} 4... Nf6 {[%clk 0:02:50.4]} 5. d4 {[%clk 0:02:51.7]}
5... Nbd7 {[%clk 0:02:42.6]} 6. dxe5 {[%clk 0:02:47.1]} 6... Nxe5 {[%clk
0:02:40.3]} 7. Nf3 {[%clk 0:02:46.7]} 7... Be7 {[%clk 0:02:35.1]} 8. Nxe5 {[%clk
0:02:06.2]} 8... dxe5 {[%clk 0:02:36]} 9. Qxd8+ {[%clk 0:02:05.9]} 9... Bxd8
{[%clk 0:02:34.6]} 10. O-O {[%clk 0:02:04.6]} 10... O-O {[%clk 0:02:24.4]} 11.
b3 {[%clk 0:02:01.3]} 11... Be7 {[%clk 0:02:06.3]} 12. Bb2 {[%clk 0:02:00.2]}
12... c6 {[%clk 0:02:00]} 13. Rad1 {[%clk 0:01:55.6]} 13... Be6 {[%clk
0:01:58.1]} 14. Rd2 {[%clk 0:01:50.6]} 14... Rfd8 {[%clk 0:01:53]} 15. Rfd1
{[%clk 0:01:50.6]} 15... Rxd2 {[%clk 0:01:45.2]} 16. Rxd2 {[%clk 0:01:49.9]}
16... Rd8 {[%clk 0:01:40]} 17. Rxd8+ {[%clk 0:01:50]} 17... Bxd8 {[%clk
0:01:40.9]} 18. Kf1 {[%clk 0:01:11.7]} 18... Kf7 {[%clk 0:01:29.7]} 19. e3
{[%clk 0:00:44.1]} 19... Bc7 {[%clk 0:01:14.8]} 20. Ke2 {[%clk 0:00:43]} 20...
g5 {[%clk 0:00:56.1]} 21. f3 {[%clk 0:00:34.7]} 21... h5 {[%clk 0:00:48.5]} 22.
Kf2 {[%clk 0:00:34.2]} 22... a6 {[%clk 0:00:45]} 23. Ne2 {[%clk 0:00:34.2]}
23... b5 {[%clk 0:00:32.2]} 24. cxb5 {[%clk 0:00:33.2]} 24... cxb5 {[%clk
0:00:31.9]} 25. h3 {[%clk 0:00:31.9]} 25... Bd5 {[%clk 0:00:31.4]} 26. f4 {[%clk
0:00:26.7]} 26... Bxg2 {[%clk 0:00:24.3]} 27. Kxg2 {[%clk 0:00:27.6]} 27... exf4
{[%clk 0:00:16.9]} 28. exf4 {[%clk 0:00:25]} 28... g4 {[%clk 0:00:14.8]} 29. Nd4
{[%clk 0:00:18.6]} 29... Kg6 {[%clk 0:00:14.4]} 30. Ne6 {[%clk 0:00:14]} 30...
Bd6 {[%clk 0:00:11.9]} 31. Bxf6 {[%clk 0:00:07.3]} 31... Kxf6 {[%clk 0:00:11.9]}
32. Nd4 {[%clk 0:00:07.5]} 32... Bc5 {[%clk 0:00:11.2]} 33. Nc2 {[%clk
0:00:04.5]} 33... Ke6 {[%clk 0:00:09.7]} 34. hxg4 {[%clk 0:00:04.9]} 34... hxg4
{[%clk 0:00:10.6]} 35. Kf1 {[%clk 0:00:05.1]} 35... Kd5 {[%clk 0:00:11.1]} 36.
Ke2 {[%clk 0:00:04.6]} 36... Ke4 {[%clk 0:00:11.6]} 37. Ne1 {[%clk 0:00:04.7]}
37... Bd4 {[%clk 0:00:09.4]} 38. Nd3 {[%clk 0:00:04.8]} 38... Bc3 {[%clk
0:00:09]} 39. Nc5+ {[%clk 0:00:04.9]} 39... Kd5 {[%clk 0:00:09]} 40. Nxa6 {[%clk
0:00:05.8]} 40... Kc6 {[%clk 0:00:07.3]} 41. Nb8+ {[%clk 0:00:03.1]} 41... Kc7
{[%clk 0:00:07.4]} 42. Na6+ {[%clk 0:00:02.8]} 42... Kb6 {[%clk 0:00:05.5]} 43.
Nb8 {[%clk 0:00:03.3]} 43... Kc7 {[%clk 0:00:04.6]} 44. Na6+ {[%clk 0:00:03.6]}
44... Kb6 {[%clk 0:00:03.3]} 45. Nb8 {[%clk 0:00:03.9]} 45... Kc7 {[%clk
0:00:03.7]} 1/2-1/2